[Event "4th Ordu Open 2018"]
[Site "Ordu"]
[Date "2018.04.10"]
[Round "2.23"]
[White "Maghsoudloo, Amir Ali"]
[Black "Gokbulut, Julia"]
[Result "1-0"]
[ECO "E65"]
[WhiteElo "1911"]
[BlackElo "2063"]
[Annotator "NA"]
[PlyCount "155"]
[EventType "swiss"]
[EventCountry "TUR"]
[SourceTitle "playchess.com"]
[Source "ChessBase"]
[SourceQuality "1"]
[TimeControl "5400+30"]

1. Nf3 {[%emt 0:00:30]} Nf6 {[%emt 0:01:00]} 2. g3 {[%emt 0:00:00]} g6 {[%emt 0:00:30]} 3. b3 {[%emt 0:00:00]} Bg7 {[%emt 0:00:00]} 4. Bb2 {[%emt 0:00:00]} O-O {[%emt 0:00:00]} 5. Bg2 $11 {[%emt 0:00:00] LiveBook: 1969 Games} c5 {[%emt 0:01:30]} 6. O-O {[%emt 0:00:30]} d6 {[%emt 0:01:30]} 7. d4 {[%emt 0:00:00]} cxd4 {[%emt 0:00:30]} 8. Nxd4 {[%emt 0:00:00]} a6 {[%emt 0:00:30]} 9. c4 {[%emt 0:02:30]} Qc7 {[%emt 0:06:30]} 10. Nc3 {[%emt 0:00:30]} Bg4 {[%emt 0:02:30]} 11. Rc1 {[%emt 0:00:30]} e5 {[%emt 0:04:30]} 12. Nc2 {[%emt 0:00:30]} Bh6 {[%emt 0:06:30]} 13. Ne3 {[%emt 0:00:30]} Be6 {[%emt 0:03:30]} 14. Ncd5 {[%emt 0:05:30]} Bxd5 {[%emt 0:01:30]} 15. cxd5 {[%emt 0:00:00]} Qe7 {[%emt 0:01:30]} 16. Rc2 {[%emt 0:07:00]} b5 {[%emt 0:00:30]} 17. Qa1 {[%emt 0:04:30]} Bxe3 {[%emt 0:04:30]} 18. fxe3 {[%emt 0:00:00]} Ng4 {[%emt 0:00:00]} 19. Qc1 {[%emt 0:02:00]} Ra7 {[%emt 0:13:00]} 20. h3 {[%emt 0:00:30]} Nf6 {[%emt 0:01:30]} 21. Rc8 {[%emt 0:01:30]} Nbd7 {[%emt 0:03:30]} 22. Rc7 {[%emt 0:00:30]} Rfa8 {[%emt 0:05:30]} 23. h4 {[%emt 0:04:30]} Ne8 {[%emt 0:06:30]} 24. Rc6 {[%emt 0:00:30]} a5 {[%emt 0:01:30]} 25. Bh3 {[%emt 0:01:30]} Nc5 {[%emt 0:03:30]} 26. Qa1 {[%emt 0:04:30]} Ne4 {[%emt 0:03:30]} 27. Kh2 {[%emt 0:01:30]} a4 {[%emt 0:01:30]} 28. Bg2 {[%emt 0:00:30]} N4f6 {[%emt 0:02:30]} 29. Qc1 {[%emt 0:02:30]} axb3 {[%emt 0:00:30]} 30. axb3 {[%emt 0:00:30]} Ra2 {[%emt 0:00:30]} 31. Kh1 {[%emt 0:02:30]} Kg7 {[%emt 0:04:30]} 32. Rc2 {[%emt 0:02:30]} Nh5 {[%emt 0:05:11]} 33. Rf3 {[%emt 0:00:30]} R8a7 {[%emt 0:04:16]} 34. Qd2 {[%emt 0:00:30]} Kg8 {[%emt 0:01:44]} 35. Rc8 {[%emt 0:00:30]} e4 {[%emt 0:02:05]} 36. Rf2 {[%emt 0:02:30]} Nxg3+ {[%emt 0:01:20]} 37. Kg1 {[%emt 0:00:30]} Nf5 {[%emt 0:03:31]} 38. Qc3 {[%emt 0:00:30]} f6 {[%emt 0:01:10]} 39. Rf4 {[%emt 0:01:30]} b4 {[%emt 0:00:53]} 40. Qxf6 {[%emt 0:00:30]} Qxf6 {[%emt 0:00:47]} 41. Bxf6 {[%emt 0:00:30]} Kf7 {[%emt 0:00:00]} 42. Bd4 {[%emt 0:00:00]} Re7 {[%emt 0:01:30]} 43. Bxe4 {[%emt 0:00:00]} Neg7 {[%emt 0:00:36]} 44. Bd3 {[%emt 0:00:30]} Re8 {[%emt 0:00:31]} 45. Rc7+ {[%emt 0:02:30]} Re7 {[%emt 0:00:46]} 46. Rxe7+ {[%emt 0:00:30]} Kxe7 {[%emt 0:00:42]} 47. Bxg7 {[%emt 0:00:00]} Nxg7 {[%emt 0:00:00]} 48. Rxb4 {[%emt 0:00:00]} Kf6 {[%emt 0:00:12]} 49. Rb7 {[%emt 0:00:30]} Nf5 {[%emt 0:01:00]} 50. Rxh7 {[%emt 0:02:30]} Nxe3 {[%emt 0:00:49]} 51. Rd7 {[%emt 0:00:00]} Nxd5 {[%emt 0:01:32]} 52. Rxd6+ {[%emt 0:00:00]} Ke5 {[%emt 0:00:08]} 53. Rxg6 {[%emt 0:00:30]} Nf4 {[%emt 0:00:27]} 54. Rg8 {[%emt 0:03:30]} Kd4 {[%emt 0:01:09]} 55. Rg4 {[%emt 0:01:30]} Ke3 {[%emt 0:01:28]} 56. Rg3+ {[%emt 0:00:00]} Kd2 {[%emt 0:00:00]} 57. Rf3 {[%emt 0:00:00]} Ne6 {[%emt 0:00:35]} 58. Bc4 {[%emt 0:00:30]} Ng7 {[%emt 0:00:44]} 59. e4 {[%emt 0:00:30]} Ra5 {[%emt 0:00:29]} 60. Rd3+ {[%emt 0:00:30]} Ke1 {[%emt 0:00:27]} 61. Re3+ {[%emt 0:00:30]} Kd2 {[%emt 0:00:47]} 62. Re2+ {[%emt 0:00:00]} Kd1 {[%emt 0:00:02]} 63. e5 {[%emt 0:00:00]} Nf5 {[%emt 0:00:18]} 64. e6 {[%emt 0:00:30]} Ne7 {[%emt 0:00:12]} 65. Rh2 {[%emt 0:00:30]} Ke1 {[%emt 0:00:22]} 66. Re2+ {[%emt 0:01:30]} Kd1 {[%emt 0:00:02]} 67. Re4 {[%emt 0:00:00]} Kd2 {[%emt 0:00:35]} 68. Rd4+ {[%emt 0:00:00]} Ke3 {[%emt 0:00:17]} 69. Rd3+ {[%emt 0:00:30]} Kf4 {[%emt 0:00:45]} 70. Kf2 {[%emt 0:00:30]} Ra2+ {[%emt 0:00:56]} 71. Ke1 {[%emt 0:00:00]} Nf5 {[%emt 0:00:45]} 72. Rd2 {[%emt 0:01:00]} Ra1+ {[%emt 0:00:33]} 73. Kf2 {[%emt 0:00:30]} Rh1 {[%emt 0:00:26]} 74. Kg2 {[%emt 0:00:30]} Rxh4 {[%emt 0:01:04]} 75. Rf2+ {[%emt 0:00:30]} Kg5 {[%emt 0:00:25]} 76. Rxf5+ {[%emt 0:00:30]} Kxf5 {[%emt 0:00:32]} 77. e7 {[%emt 0:00:30]} Rh8 {[%emt 0:01:17]} 78. Bf7 {[%emt 0:00:00]} 1-0

[Event "4th Ordu Open 2018"]
[Site "Ordu"]
[Date "2018.04.10"]
[Round "2.24"]
[White "Sahin, Doga Boran"]
[Black "Peker, Serdar"]
[Result "1/2-1/2"]
[ECO "B66"]
[WhiteElo "2005"]
[BlackElo "1821"]
[Annotator "NA"]
[PlyCount "79"]
[EventType "swiss"]
[EventCountry "TUR"]
[SourceTitle "playchess.com"]
[Source "ChessBase"]
[SourceQuality "1"]
[TimeControl "5400+30"]

1. e4 {[%emt 0:00:30] 4} c5 {[%emt 0:01:00] 4} 2. Nf3 {[%emt 0:00:00] 4} d6 {[%emt 0:00:30]} 3. d4 {[%emt 0:00:00]} cxd4 {[%emt 0:00:00]} 4. Nxd4 {[%emt 0:00:30]} Nf6 {[%emt 0:00:00]} 5. Nc3 {[%emt 0:00:00]} Nc6 {[%emt 0:00:00]} 6. Bg5 {[%emt 0:00:00]} e6 $14 {[%emt 0:00:00] LiveBook: 14029 Games} 7. Qd2 {[%emt 0:00:30]} Be7 {[%emt 0:02:30]} 8. O-O-O {[%emt 0:00:30]} a6 {[%emt 0:03:30]} 9. f4 {[%emt 0:03:30]} Qc7 {[%emt 0:09:30]} 10. Bxf6 {[%emt 0:11:30]} gxf6 {[%emt 0:03:30]} 11. Be2 {[%emt 0:00:30]} Nxd4 {[%emt 0:02:30]} 12. Qxd4 {[%emt 0:00:00]} Qc5 {[%emt 0:01:30]} 13. Qxc5 {[%emt 0:16:00]} dxc5 {[%emt 0:00:00]} 14. Na4 {[%emt 0:00:00]} b5 {[%emt 0:03:00]} 15. Nb6 {[%emt 0:01:00]} Rb8 {[%emt 0:00:00]} 16. Nxc8 {[%emt 0:00:00]} Rxc8 {[%emt 0:00:00]} 17. c4 {[%emt 0:01:00]} b4 {[%emt 0:05:30]} 18. Rd3 {[%emt 0:01:30]} O-O {[%emt 0:19:30]} 19. Rd7 {[%emt 0:01:30]} Bd8 {[%emt 0:01:30]} 20. Bh5 {[%emt 0:01:30]} Bc7 {[%emt 0:10:30]} 21. g3 {[%emt 0:03:30]} a5 {[%emt 0:02:30]} 22. Rhd1 {[%emt 0:00:30]} a4 {[%emt 0:00:30]} 23. Re7 {[%emt 0:00:30]} b3 {[%emt 0:06:30]} 24. axb3 {[%emt 0:03:30]} axb3 {[%emt 0:00:30]} 25. Rd3 {[%emt 0:00:30]} Ba5 {[%emt 0:00:30]} 26. Ra7 {[%emt 0:07:30]} Rcd8 {[%emt 0:04:30]} 27. Rxb3 {[%emt 0:00:30]} Bb4 {[%emt 0:01:30]} 28. e5 {[%emt 0:20:30]} f5 {[%emt 0:05:29]} 29. Be2 {[%emt 0:16:52]} Rd4 {[%emt 0:00:44]} 30. Rd3 {[%emt 0:02:40]} Rxd3 {[%emt 0:09:29]} 31. Bxd3 {[%emt 0:00:30]} Be1 {[%emt 0:00:30]} 32. Kc2 {[%emt 0:00:30]} Bf2 {[%emt 0:00:30]} 33. Be2 {[%emt 0:00:30]} Bg1 {[%emt 0:00:30]} 34. Ra1 {[%emt 0:00:30]} Bd4 {[%emt 0:00:30]} 35. Rd1 {[%emt 0:00:30]} Rb8 {[%emt 0:00:30]} 36. Rb1 {[%emt 0:00:30]} Kf8 {[%emt 0:00:30]} 37. Bf3 {[%emt 0:00:30]} Ke7 {[%emt 0:00:30]} 38. b3 {[%emt 0:00:30]} Rb6 {[%emt 0:00:30]} 39. Kd3 {[%emt 0:00:30]} Ra6 {[%emt 0:00:30]} 40. Be2 {[%emt 0:08:26] [%clk 0:00.32]} 1/2-1/2